Cogmind - Beta 14 @@@ ROGUE MODE // 2024.12.20 @ 15:35:48 Player: WanS24 Result: Self-destructed Performance ------------- Evolutions (1) 500 Regions Visited (2) 400 Robots Destroyed (20) 100 Value Destroyed (598) 598 Prototype IDs (2) 40 Alien Tech Used (0) 0 Bonus (8) 8 TOTAL SCORE: 1646 Bonus ------- High Alert Combat Kills 8 Cogmind --------- Core Integrity 97/400 Matter 247/300 Energy 100/100 System Corruption 0% Temperature Cool (0) Movement Core (50) Location -9/Materials Parts ------- > --- POWER (1) -------- (None) > --- PROPULSION (3) --- (None) > --- UTILITY (3) ------ Visual Processing Unit Signal Interpreter > --- WEAPON (2) ------- (None) > --- INVENTORY (5) ---- Flight Unit Small Laser Light Assault Rifle Peak State ------------ > --- POWER ------------ Light Ion Engine > --- PROPULSION ------- Improved Aluminum Leg Improved Aluminum Leg > --- UTILITY ---------- Visual Processing Unit Signal Interpreter > --- WEAPON ----------- Light Assault Rifle Flail > --- INVENTORY -------- Aluminum Leg Aluminum Leg Small Laser [Rating: 11] Favorites ----------- Power Ion Engine Engine Ion Engine Propulsion Aluminum Leg Leg Aluminum Leg Flight Unit Flight Unit Utility Visual Processing Unit Device Seismic Detector Processor Visual Processing Unit Weapon Light Assault Rifle Energy Cannon Beam Cannon Ballistic Gun Light Assault Rifle Ballistic Cannon Light Cannon Launcher Grenade Launcher Impact Weapon Flail Build | -11 -10 -9 ------- Run | Yrd Mat Mat Slots Evolved 2 | . . 2 Power . | . . . Propulsion 1 | . . 1 Utility 1 | . . 1 Weapon . | . . . Parts Attached 28 | 5 22 1 Power 2 | 1 1 . Engine 2 | 1 1 . Core . | . . . Reactor . | . . . Propulsion 11 | 2 9 . Treads . | . . . Leg 10 | 2 8 . Wheel . | . . . Hover . | . . . Flight 1 | . 1 . Utility 4 | . 3 1 Device 1 | . . 1 Storage . | . . . Processor 3 | . 3 . Hackware . | . . . Protection . | . . . Artifact . | . . . Weapon 11 | 2 9 . Energy Gun . | . . . Energy Cannon 1 | . 1 . Ballistic Gun 6 | 2 4 . Ballistic Cannon 1 | . 1 . Launcher 1 | . 1 . Special Weapon . | . . . Impact Weapon 2 | . 2 . Slashing Weapon . | . . . Piercing Weapon . | . . . Special Melee Weapon . | . . . Unidentified Prototypes . | . . . Parts Lost 7 | . 2 5 Power 2 | . 1 1 Propulsion 2 | . . 2 Utility 1 | . . 1 Weapon 2 | . 1 1 Highest Loss Streak 5 | . 2 5 To Critical Strikes . | . . . Average Slot Usage (%) 85 | . 89 72 Engine 9 | . 9 10 Leg 26 | . 27 19 Device 1 | . . 9 Processor 24 | . 24 22 Energy Cannon 2 | . 2 . Ballistic Gun 9 | . 12 . Launcher 4 | . 6 . Impact Weapon 6 | . 5 11 Peak Build Rating 11 | 5 11 9 Average Rating 8 | 3 8 8 On Entrance 4 | . 5 8 Naked Turns . | . . . Heaviest Build 11 | 7 11 6 Greatest Support 26 | 20 26 20 Greatest Overweight (x) 2 | 2 . . Average Overweight (x) . | . . . Largest Inventory Capacity 5 | 5 5 5 Average Capacity 5 | 5 5 5 Most Carried 5 | 3 5 4 Average Carried 2 | . 2 3 Final Capacity 5 | 5 5 5 Final Carried 3 | . 3 3 Class Distribution -------------------- 73% | Mutant 26% | Scavenger-Mutant Dominant Class ---------------- Mutant | -10/Materials Scavenger-Mutant | -9/Materials Resources | -11 -10 -9 ----------- Run | Yrd Mat Mat Matter Collected 598 | 161 367 70 Remotely . | . . . Salvage Created 614 | . 411 203 Parts 33 | . 26 7 Haulers Intercepted . | . . . Recyclers Shooed . | . . . Parts Field Recycled . | . . . Retrieved Matter . | . . . Parts Self-Destructed . | . . . Prevented . | . . . Kills | -11 -10 -9 ------- Run | Yrd Mat Mat Combat Hostiles Destroyed 16 | . 13 3 Guns 2 | . 2 . Cannons 5 | . 5 . AOE 5 | . 5 . Classes Destroyed 4 | . 3 1 Recycler 1 | . . 1 Watcher 3 | . 3 . Swarmer 3 | . 3 . Grunt 13 | . 10 3 Best Kill Streak 5 | . 5 2 Combat Bots Only 4 | . 4 2 Max Kills in Single Turn 2 | . 2 1 Gunslinging . | . . . Exploded 2 | . 2 . Melee . | . . . Uniques/NPCs Destroyed . | . . . Combat | -11 -10 -9 -------- Run | Yrd Mat Mat Hostile Shots Fired 138 | . 71 67 Missed 30 | . 16 14 Damage Taken 1365 | . 711 654 Core 412 | . 109 303 Absorbed by Shields . | . . . Core Remaining (%) 78 | 100 56 . Volleys Fired 56 | . 56 . Largest 2 | . 2 . Hottest 83 | . 83 . Shots Fired 66 | . 66 . Gun 21 | . 21 . Cannon 29 | . 29 . Launcher 16 | . 16 . Special . | . . . Kinetic 21 | . 21 . Thermal 29 | . 29 . Explosive 16 | . 16 . Electromagnetic . | . . . Robot Hit Streak 4 | . 4 . Robot Miss Streak 7 | . 7 . Penetration Max . | . . . Secondary Targets . | . . . Shots Hit Robots 54 | . 39 15 Core Hits 23 | . 22 1 Critical Kills . | . . . Critical Parts Destroyed 2 | . . 2 Critical Strikes 2 | . . 2 Smash 2 | . . 2 Melee Attacks 29 | . 8 21 Impact 29 | . 8 21 Slashing . | . . . Piercing . | . . . Sneak Attacks . | . . . Combat Hostiles . | . . . Follow-up Attacks . | . . . Damage Inflicted 1638 | . 1117 521 Guns 117 | . 117 . Cannons 312 | . 312 . Explosions 568 | . 568 . Melee 632 | . 111 521 Ramming 9 | . 9 . Kinetic 117 | . 117 . Thermal 312 | . 312 . Explosive 568 | . 568 . Electromagnetic . | . . . Impact 632 | . 111 521 Slashing . | . . . Piercing . | . . . Highest Corruption . | . . . Average Corruption . | . . . Corruption Purged . | . . . Corruption Blocked . | . . . Overload Shots . | . . . Overflow Damage 113 | . 19 94 Projectiles . | . . . Explosions 12 | . 12 . Melee 101 | . 7 94 Knockbacks 7 | . 1 6 Impact 6 | . 1 5 Kinetic . | . . . Secondary 1 | . . 1 Self-Inflicted Damage 9 | . 9 . Shots 1 | . 1 . Rammed . | . . . Targets Rammed 2 | . 2 . Kicked 2 | . 2 . Crushed . | . . . Highest Temperature 332 | . 332 . Average Temperature 138 | . 138 . Received Heat Transfer 756 | . 411 345 Effects 1 | . 1 . Energy Bleed 1 | . 1 . Siege Activations . | . . . Robots Corrupted 4 | . 1 3 Combat Hostiles 4 | . 1 3 Parts Fried 4 | . 1 3 Impact Corruptions 6 | . 1 5 Robots Melted . | . . . Combat Hostiles . | . . . Parts Melted 3 | . 3 . Heat Transferred 666 | . 666 . Parts Sabotaged . | . . . Parts Stolen . | . . . Parts Stripped . | . . . Power Chain Reactions . | . . . Alert | -11 -10 -9 ------- Run | Yrd Mat Mat Peak Influence 402 | . 402 230 Initial 125 | . . 125 Average 174 | . 196 154 Maximum Alert Level 2 | . 2 1 Low Security (%) 50 | 100 39 73 Level 1 45 | . 54 26 Level 2 4 | . 6 . Level 3 . | . . . Level 4 . | . . . Level 5 . | . . . High Security . | . . . Max Security . | . . . Squads Dispatched 5 | . 4 1 Investigation . | . . . Extermination . | . . . Reinforcement 5 | . 4 1 Assault . | . . . Garrison . | . . . Intercept . | . . . Searches Triggered . | . . . Construction Impeded . | . . . Haulers Reinforced . | . . . Active Scanning Responses . | . . . Cargo Convoy Interrupts . | . . . Stealth | -11 -10 -9 --------- Run | Yrd Mat Mat Distress Signals 1 | . . 1 Communications Jammed . | . . . Distress Signals . | . . . Times Spotted 37 | . 22 15 Peak Tracking Total 9 | . 6 9 Tactical Retreats 1 | . . 1 Traps | -11 -10 -9 ------- Run | Yrd Mat Mat Traps Triggered 1 | . . 1 Indirectly . | . . . Trap Hack Attempts . | . . . Triggered . | . . . Disarmed . | . . . Reprogrammed . | . . . Reused . | . . . Traps Extracted . | . . . Installed . | . . . Triggered . | . . . Machines | -11 -10 -9 ---------- Run | Yrd Mat Mat Machines Disabled 2 | . 2 . Max in Single Turn 1 | . 1 . Machines Repaired . | . . . Machines Dismantled . | . . . Machines Sabotaged . | . . . Overloaded Fab Kills . | . . . Hacking | -11 -10 -9 --------- Run | Yrd Mat Mat Machines Accessed 2 | . 1 1 Terminals 2 | . 1 1 Fabricators . | . . . Repair Stations . | . . . Recycling Units . | . . . Scanalyzers . | . . . Garrison Access . | . . . Total Hacks 5 | . 3 2 Successful 4 | . 3 1 Failed 1 | . . 1 Catastrophic . | . . . Database Lockouts . | . . . Manual . | . . . Terminals 5 | . 3 2 Fabricators . | . . . Repair Stations . | . . . Recycling Units . | . . . Scanalyzers . | . . . Garrison Access . | . . . Terminal Hacks 4 | . 3 1 Record 1 | . . 1 Prototype ID Bank 1 | . 1 . Alert Level 1 | . 1 . Maintenance Status 1 | . 1 . Fabricator Hacks . | . . . Repair Station Hacks . | . . . Recycling Unit Hacks . | . . . Scanalyzer . | . . . Garrison Access Hacks . | . . . Unauthorized Hacks . | . . . Terminals . | . . . Fabricators . | . . . Repair Stations . | . . . Recycling Units . | . . . Scanalyzers . | . . . Garrison Access . | . . . Data Cores Recovered . | . . . Used . | . . . Hacking Detections 1 | . 1 . Full Trace Events . | . . . Feedback Events . | . . . Feedback Blocked . | . . . Robot Schematics Acquired . | . . . Robots Built . | . . . Authchips . | . . . Time . | . . . Total Robot Build Rating . | . . . Part Schematics Acquired . | . . . Parts Built . | . . . Authchips . | . . . Time . | . . . Total Part Build Rating . | . . . Parts Repaired . | . . . Time . | . . . Parts Recycled . | . . . Recycled Matter . | . . . Retrieved Matter . | . . . Retrieved Components . | . . . Parts Scanalyzed . | . . . Part Schematics Acquired . | . . . Parts Damaged . | . . . Bothacking | -11 -10 -9 ------------ Run | Yrd Mat Mat Used RIF Installer . | . . . Robots Hacked . | . . . Non-combat . | . . . Combat . | . . . Robot Hacks Applied . | . . . Relay Couplers Released . | . . . Fabnet Peak Effective % . | . . . Robots Rewired . | . . . Allies Hacked . | . . . Hacks Repelled . | . . . Allies | -11 -10 -9 -------- Run | Yrd Mat Mat Total Allies . | . . . Largest Group . | . . . Highest-Rated Group . | . . . Highest-Rated Ally . | . . . Total Orders . | . . . Ally Attacks . | . . . Total Damage . | . . . Kills . | . . . Allies Corrupted . | . . . Allies Melted . | . . . Intel | -11 -10 -9 ------- Run | Yrd Mat Mat Robot Analysis Total . | . . . Derelict Logs Recovered . | . . . Drone Launches . | . . . Drone Recoveries . | . . . Exploration | -11 -10 -9 ------------- Run | Yrd Mat Mat Turns Passed 973 | 71 723 179 Spaces Moved 571 | 53 429 89 Core 16 | 13 . 3 Treads . | . . . Legs 555 | 40 429 86 Wheels . | . . . Hover . | . . . Flight . | . . . Fastest Speed 50 | 50 120 50 Average Speed 118 | 110 120 117 Slowest Speed 150 | 150 120 120 Overloaded Moves . | . . . Propulsion Burnouts . | . . . Robots Hopped . | . . . Cave-ins Triggered . | . . . Exploration Rate (%) 29 | 3 73 13 Regions Visited 2 Branch Regions . Pre-discovered Areas . | . . . Known Exits Taken 1 | . 1 . Unknown Exits Taken 1 | 1 . . Scrap Searched . | . . . Spaces Dug . | . . . Terrain Destroyed 84 | . 84 . Melee . | . . . Projectile . | . . . AOE 84 | . 84 . Terrain Rammed . | . . . Walls Destroyed . | . . . Machines Disabled . | . . . Actions | -11 -10 -9 --------- Run | Yrd Mat Mat Total 768 | 66 571 131 Wait 25 | . 6 19 Move 569 | 52 428 89 Hop . | . . . Pick Up 34 | 7 26 1 Fast Attach . | . . . Attach 21 | 5 15 1 Detach 4 | . 4 . Swap 7 | . 7 . Drop 21 | 2 19 . Fire 56 | . 56 . Melee 29 | . 8 21 Ram . | . . . Kick 2 | . 2 . Crush . | . . . Escape Stasis . | . . . Rewire . | . . . Trap . | . . . Miscellaneous . | . . . Route ------- -11/Scrapyard -10/Materials (discovered 4 exits: *Mat x2 / *Min x2) -9/Materials (discovered 1 exit: [*Min]) History --------- Turn | Location | Event 7 | -11/Scrapyard | Discovered new exit (range 16) 72 | -11/Scrapyard | Entered Materials 191 | -10/Materials | Discovered new exit (range 18) 281 | -10/Materials | Discovered new exit (range 7) 294 | -10/Materials | Discovered new exit (range 18) 294 | -10/Materials | Identified exit to Mines 302 | -10/Materials | Build established: Mutant 515 | -10/Materials | Discovered new exit (range 17) 705 | -10/Materials | Identified exit to Materials 795 | -10/Materials | Entered another Materials area 795 | -9/Materials | Evolved 2 slots: Propulsion x1, Utility x1 923 | -9/Materials | Discovered new exit (range 7) 968 | -9/Materials | Core integrity fell below 50% 974 | -9/Materials | Self-destructed Last Messages --------------- K-01 Serf collects debris. Seismic Detector destroyed. G-34 Mercenary knocked back. R-06 Scavenger destroyed. K-01 Serf collects debris. Lgt. Ion Engine destroyed. K-01 Serf collects debris. Acquired 29 matter. R-06 Scavenger collects Com. Wheel. K-01 Serf collects debris. G-34 Mercenary knocked back. K-01 Serf collects debris. R-06 Scavenger collects Lgt. Ion Engine. K-01 Serf collects debris. Destroyed Heat Sink. G-34 Mercenary system corrupted by crushing effect. K-01 Serf collects debris. Flail destroyed. R-06 Scavenger collects Com. Wheel. Map ----- +----------------------------------------------------+ | ?????????????????????????????????????????????????? | | ?????????????????????????????????????????????????? | | ?????????????????????????????????????????????????? | | ?????????????????????????????????????????????????? | | ?????????????????????????????????????????????????? | | ?????????????????????????????????????????????????? | | ?????????????????????????????????????????????????? | | ?????????????????????????????????????????????????? | | ?????????????????????????????????????????????????? | | ?????????????????????????????????????????????????? | | ?????????????????????????????????????????????????? | | ?????????????????????????????????????????????????? | | ?????????????????????????????????????????????????? | | ?????????????????????????????????????????????????? | | ?????????????????????????????????????????????????? | | ???????????????????#?????????????????????????????? | | ???????????????????# ????????????????????????????? | | ?????????????????### ######??????????????????????? | | ?????????????????# ^ ^ ??????????????????????? | | ?????????????????#^^^ ??????????????????????? | | ?????????????????# u??????????????????????? | | ?????????????????# """ #??????????????????????? | | ??????????# ???# """ = ###########????????????? | | ??????????? " # """ kg# k #????????????? | | ???????????? "" + r!# g #????????????? | | ?????????????????# @g k #????????????? | | ?????????????????###### # g #????????????? | | ??????????????????????# ####g###+##????????????? | | ????????????????????? ??# #?# #?????????????? | | ???????????????????#"" ??# #?# #??##########?? | | ???????????????????#!! #?# #?# #??# !! #?? | | ???????????????????#"" < #?# #?# #??# ! ### | | ???????????????????#!! ### #?# #??# # | | ???????????????????#"" kw ##T #?# #??# # | | ???????????????????#" #?# ### #### + | | ???????????????????#### ##?# ##""" "" # | | ??????????????????????# g#### ##""" T" # | | ??????????????????????# ##""" "" ### | | ??????????????????????# ## # | | ?????????????????????## !! ########### | | ????????????????????## !! #????# | | ????????????????? ! ###### | | ????????????????? + | | ????????????????? ###### | | ??????????????????#### #????# | | ?????????????????????# ############### #????### | | ?????????????????????# ??????????????# #??????? | | ?????????????????????# ???????????????# #??????? | | ?????????????????????# ????????????????# #??????? | | ?????????????????????#??????????????????# #??????? | +----------------------------------------------------+ Best States ------------- Heat Dissipation 28 Energy Generation 10 Energy Capacity 250 Matter Stores 242 Matter Capacity 300 Sight Range 18 Terrain Scan Density 10 Evasion (%) 55 Item Schematics ----------------- None Robot Schematics ------------------ None Fabricated ------------ Nothing Alien Tech Used ----------------- None Achievements -------------- Power Corrupts Challenges ------------ None Game ------ Seed AccelerationInertialShovel Manual? 0 Play Time 00:26:57 Cumulative 2.9 hours Start 2024.12.20 @ 15:08:39 End 2024.12.20 @ 15:35:48 Sessions 1 Manual Loads 0 Difficulty Rogue Special Mode None Game No. 4 Rogue 4 Adventurer 0 Explorer 0 Win Type - Total 0 Types 0/0/0/0/0/0/0/0/0 Lore% 1 Gallery% 5 Achievement% 6 Wizard Run 0 Options --------- Layout 1 ASCII 0 Keyboard 0 Movement Mouse Keybinds 0 Fullscreen 1 Font 24/Smallcaps Map View 50x35 Zoom Use 0% Tactical HUD 0 Map Filters NONE Filters NONE Steam 1 RUN: cd53d563-fc62-4b97-9702-648036ceba6e